{"text_format":"1","workbook":"xlsx","n_sheets":5,"sheets":["flt template","flt template-no chall flts","flt template on 1 page","flt template ex 1","flt template example 2"],"not_rendered":{"charts":0,"images":0,"macros":0,"external_links":0,"defined_names":5,"comments":0,"pivot_tables":0},"unopened":[],"bounds":{"document_bytes":16777216,"sheet_cells":100000,"rows_first":2000,"rows_last":500,"rows_between":2000,"halvings":0,"cell_chars":16384,"cell_head_chars":4096},"cells_cut":0,"cells_raw":0,"read":"whole","date_system":"1900"}

{"sheet":"flt template","index":0,"n_rows":132,"n_cols":10,"rows_kept":132,"cut":false,"hidden":false,"merged":[]}
["Top Team(1)",{"$f":"+A1","v":"Top Team(1)"}]
[2,null,null,null,"Championship Flight",null,null,null,null,"dotted lines show the page breaks"]
[3,"RINK 10",null,null,null,null,null,null,null,"To see the page breaks better"]
[4,"loser to201",null,null,null,null,null,null,null,"go to VIEW/PAGE BREAK PREVIEW  above"]
[5,{"$f":"+A8","v":8},"RINK 14"]
[6,{"$f":"+A4","v":4},"loser to 204",null,null,null,null,null,null,"Formulas are in all the cells for the team name in the first game"]
[7,null,null,null,null,null,null,null,null,"When you do a xfer to flights on the scoresheets it places the teams"]
[8,"RINK 11",null,null,null,null,null,null,null,"in the proper position on this sheet."]
[9,"loser to 201",null,null,null,null,"Champion"]
[10,{"$f":"+A5","v":5},null,null,"RINK 13"]
[11,{"$f":"+A2","v":2},null,null,null,null,"2nd place",null,null,"Challenge flights allow 2 games minimum for all on last day"]
[12]
[13,"RINK 14",null,null,null,null,null,null,null,"The sheet is unprotected to allow changes to be made"]
[14,"loser to 202"]
[15,{"$f":"+A7","v":7},"RINK 10",null,null,null,null,null,null,"Good Practices"]
[16,{"$f":"+A3","v":3},"loser to 204",null,null,null,null,null,null,"don't use end rinks for top 2 flights"]
[17]
[18,"RINK 15",null,null,null,null,null,null,null,"Minimize changing greens"]
[19,"loser to 202",null,null,"RINK 12",null,"3rd place"]
[20,{"$f":"+A6","v":6},null,null,204,null,"4th place",null,null,"Note how in champ flt, each 2nd game uses a rink used from the other half of the bracket"]
[21,null,null,null,null,null,null,null,null," the top 4 teams only used 4 rinks for the 1st 2 games, 10,11,14,15. it's easy to find a good rink for champ game and 3rd/4th"]
[22,null,"RINK 12"]
[23,null,"201            loser out"]
[24,"2nd flight",null,null,null,null,"2nd flight 1st",null,null,"To delete lines, highlight a box which has all the lines you want to delete"]
[25,null,null,null,"** RINK 10 or11",null," 2nd flight 2nd"]
[26,null,"RINK 13",null,"** Use whichever rink neither team has played on",null,null,null,null,"Put the cursor in a cell for 1 corner of the box"]
[27,null,"202          loser out"]
[28,null,null,null,null,null,null,null,null,"while holding the cursor down slide slide your finger to create a box"]
[29,{"$f":"+A9","v":9},null,null,null,null,null,null,null,"right click format cells/border/none"]
[30,null,null,null,"3rd Flight"]
[31,"RINK 2",null,null,null,null,null,null,null,"If green 1 is the better one, subtract 8 for rinks 9 to 16 and add 8 to rinks 1 to 8"]
[32,"loser to 301"]
[33,{"$f":"+A16","v":16},"RINK 6"]
[34,{"$f":"+A12","v":12},"loser out"]
[35]
[36,"RINK 3"]
[37,"loser to 301",null,null,null,null,"3rd flight 1st"]
[38,{"$f":"+A13","v":13},null,null,"RINK 4"]
[39,{"$f":"+A10","v":10},null,null,null,null,"3rd flight 2nd"]
[40]
[41,"RINK 6"]
[42,"loser to 302"]
[43,{"$f":"+A15","v":15},"RINK 2"]
[44,{"$f":"+A11","v":11},"loser out"]
[45]
[46,"RINK 7"]
[47,"loser to 302"]
[48,{"$f":"+A14","v":14}]
[]
[null,null,"RINK 7"]
[null,null,"301      loser out",null,null,null,"challenge"]
[null,"3rd fl",null,null,null,null,"winner"]
[null,"challenge",null,null,"RINK 5"]
[null,null,"RINK 3"]
[null,null,"302      loser out"]
[]
[null,{"$f":"+A17","v":17}]
[null,null,null,null,"4th Flight"]
[null,"RINK 9"]
[null,"loser to 401"]
[null,{"$f":"+A24","v":24},"RINK 15"]
[null,{"$f":"+A20","v":20},"loser out"]
[]
[null,"RINK 16",null,null,null,null,"4th fl 1st"]
[null,"loser to 401",null,null,"RINK 14"]
[null,{"$f":"+A21","v":21}]
[null,{"$f":"+A18","v":18},null,null,null,null,"4th fl 2nd"]
[]
[null,"RINK 12"]
[null,"loser to 402"]
[null,{"$f":"+A23","v":23},"RINK 9"]
[null,{"$f":"+A19","v":19},"loser out"]
[]
[null,"RINK 13"]
[null,"loser to 402"]
[null,{"$f":"+A22","v":22}]
[]
[null,null,"RINK 11"]
[null,null,"401       loser out",null,null,null,"challenge"]
[null,"4th fl",null,null,null,null,"winner"]
[null,"challenge",null,null,"RINK 15"]
[null,null,"RINK 16"]
[null,null,"402       loser out"]
[]
[null,{"$f":"+A25","v":25}]
[null,null,null,null,"5th Flight"]
[null,"RINK 1"]
[null,"loser to 501"]
[null,{"$f":"+A32","v":32},"RINK 4"]
[null,{"$f":"+A28","v":28},"loser out"]
[]
[null,"RINK 8"]
[null,"loser to 501",null,null,"RINK 6",null,"5th fl 1st"]
[null,{"$f":"+A29","v":29}]
[null,{"$f":"+A26","v":26},null,null,null,null,"5th fl 2nd"]
[]
[null,"RINK 4"]
[null,"loser to 502"]
[null,{"$f":"+A31","v":31},"RINK 1"]
[null,{"$f":"+A27","v":27},"loser out"]
[]
[null,"RINK 5"]
[null,"loser to 502"]
[null,{"$f":"+A30","v":30}]
[]
[null,null,"RINK 5"]
[null,null,"501         loser out",null,null,null,"challenge"]
[null,"5th fl",null,null,null,null,"winner"]
[null,"challenge",null,null,"RINK 7"]
[null,null,"RINK 8"]
[null,null,"502      loser out"]
[]
[null,{"$f":"+A33","v":33}]
[null,null,null,null,"6th Flight"]
[null,"RINK"]
[null,"loser out"]
[null,{"$f":"+A40","v":40},"RINK"]
[null,{"$f":"+A36","v":36},"loser out"]
[]
[null,"RINK"]
[null,"loser out",null,null,null,null,"6th fl 1st"]
[null,{"$f":"+A37","v":37},null,null,"RINK"]
[null,{"$f":"+A34","v":34},null,null,null,null,"6th fl 2nd"]
[]
[null,"RINK"]
[null,"loser out"]
[null,{"$f":"+A39","v":39},"RINK"]
[null,{"$f":"+A35","v":35},"loser out"]
[]
[null,"RINK"]
[null,"loser out"]
[null,{"$f":"+A38","v":38}]

{"sheet":"flt template-no chall flts","index":1,"n_rows":131,"n_cols":7,"rows_kept":131,"cut":false,"hidden":false,"merged":[]}
[]
[null,null,null,null,"Championship Flight"]
[null,"RINK"]
[null,"loser to201"]
[null,null,"RINK"]
[null,null,"loser to 204"]
[]
[null,"RINK"]
[null,"loser to 201",null,null,null,null,"Champion"]
[null,null,null,null,"RINK"]
[null,null,null,null,null,null,"2nd place"]
[]
[null,"RINK"]
[null,"loser to 202"]
[null,null,"RINK"]
[null,null,"loser to 204"]
[]
[null,"RINK"]
[null,"loser to 202",null,null,"RINK",null,"3rd place"]
[null,null,null,null,204,null,"4th place"]
[]
[null,null,"RINK"]
[null,null,"201            loser out"]
[null,"2nd flight",null,null,null,null,"2nd flight 1st"]
[null,null,null,null,"RINK",null," 2nd flight 2nd"]
[null,null,"RINK"]
[null,null,"202          loser out"]
[]
[]
[null,null,null,null,"3rd Flight"]
[null,"RINK"]
[null,"loser out"]
[null,null,"RINK"]
[null,null,"loser out"]
[]
[null,"RINK"]
[null,"loser out",null,null,null,null,"3rd flight 1st"]
[null,null,null,null,"RINK"]
[null,null,null,null,null,null,"3rd flight 2nd"]
[]
[null,"RINK"]
[null,"loser out"]
[null,null,"RINK"]
[null,null,"loser out"]
[]
[null,"RINK"]
[null,"loser out"]
[]
[]
[]
[]
[]
[]
[]
[]
[]
[]
[null,null,null,null,"4th Flight"]
[null,"RINK"]
[null,"loser out"]
[null,null,"RINK"]
[null,null,"loser out"]
[]
[null,"RINK",null,null,null,null,"4th fl 1st"]
[null,"loser out",null,null,"RINK"]
[]
[null,null,null,null,null,null,"4th fl 2nd"]
[]
[null,"RINK"]
[null,"loser out"]
[null,null,"RINK"]
[null,null,"loser out"]
[]
[null,"RINK"]
[null,"loser out"]
[]
[]
[]
[]
[]
[]
[]
[]
[]
[]
[null,null,null,null,"5th Flight"]
[null,"RINK"]
[null,"loser out"]
[null,null,"RINK"]
[null,null,"loser out"]
[]
[null,"RINK"]
[null,"loser out",null,null,"RINK",null,"5th fl 1st"]
[]
[null,null,null,null,null,null,"5th fl 2nd"]
[]
[null,"RINK"]
[null,"loser out"]
[null,null,"RINK"]
[null,null,"loser out"]
[]
[null,"RINK"]
[null,"loser out"]
[]
[]
[]
[]
[]
[]
[]
[]
[]
[]
[null,null,null,null,"6th Flight"]
[null,"RINK"]
[null,"loser out"]
[null,null,"RINK"]
[null,null,"loser out"]
[]
[null,"RINK"]
[null,"loser out",null,null,null,null,"6th fl 1st"]
[null,null,null,null,"RINK"]
[null,null,null,null,null,null,"6th fl 2nd"]
[]
[null,"RINK"]
[null,"loser out"]
[null,null,"RINK"]
[null,null,"loser out"]
[]
[null,"RINK"]
[null,"loser out"]

{"sheet":"flt template on 1 page","index":2,"n_rows":169,"n_cols":7,"rows_kept":169,"cut":false,"hidden":false,"merged":[]}
[]
[null,null,"Print out this 1 page worksheet to assign rinks with a pencil"]
[null,null,"Then  go to the flt template sheet (below) or the flt sheet for your scoresheet and put the rink numbers there.",null,"Championship Flight"]
[null,"RINK"]
[null,"loser to201"]
[null,null,"RINK"]
[null,null,"loser to 204"]
[]
[null,"RINK"]
[null,"loser to 201",null,null,null,null,"Champion"]
[]
[null,null,null,null,null,null,"2nd place"]
[]
[null,"RINK"]
[null,"loser to 202"]
[null,null,"RINK"]
[null,null,"loser to 204"]
[]
[null,"RINK"]
[null,"loser to 202",null,null,"RINK",null,"3rd place"]
[null,null,null,null,204,null,"4th place"]
[]
[null,null,"RINK"]
[null,null,"201            loser out"]
[null,null,null,null,null,null,"2nd flight 1st"]
[null,"2nd flight",null,null,"RINK",null," 2nd flight 2nd"]
[null,null,"RINK"]
[null,null,"202          loser out"]
[]
[]
[]
[null,"RINK",null,null,"3rd Flight"]
[null,"loser to 301"]
[null,null,"RINK"]
[null,null,"loser out"]
[]
[null,"RINK"]
[null,"loser to 301",null,null,null,null,"3rd flight 1st"]
[null,null,null,null,"RINK"]
[null,null,null,null,null,null,"3rd flight 2nd"]
[]
[null,"RINK"]
[null,"loser to 302"]
[null,null,"RINK"]
[null,null,"loser out"]
[]
[null,"RINK"]
[null,"loser to 302"]
[]
[]
[null,null,"RINK"]
[null,null,"301      loser out",null,null,null,"challenge"]
[null,"3rd fl",null,null,null,null,"winner"]
[null,"challenge",null,null,"RINK"]
[null,null,"RINK"]
[null,null,"302      loser out"]
[]
[]
[]
[null,"RINK",null,null,"4th Flight"]
[null,"loser to 401"]
[null,null,"RINK"]
[null,null,"loser out"]
[]
[null,"RINK",null,null,null,null,"4th fl 1st"]
[null,"loser to 401",null,null,"RINK"]
[]
[null,null,null,null,null,null,"4th fl 2nd"]
[]
[null,"RINK"]
[null,"loser to 402"]
[null,null,"RINK"]
[null,null,"loser out"]
[]
[null,"RINK"]
[null,"loser to 402"]
[]
[]
[null,null,"RINK"]
[null,null,"401       loser out",null,null,null,"challenge"]
[null,"4th fl",null,null,null,null,"winner"]
[null,"challenge",null,null,"RINK"]
[null,null,"RINK"]
[null,null,"402       loser out"]
[]
[]
[]
[null,"RINK",null,null,"5th Flight"]
[null,"loser to 501"]
[null,null,"RINK"]
[null,null,"loser out"]
[]
[null,"RINK"]
[null,"loser to 501",null,null,"RINK",null,"5th fl 1st"]
[]
[null,null,null,null,null,null,"5th fl 2nd"]
[]
[null,"RINK"]
[null,"loser to 502"]
[null,null,"RINK"]
[null,null,"loser out"]
[]
[null,"RINK"]
[null,"loser to 502"]
[]
[]
[null,null,"RINK"]
[null,null,"501         loser out",null,null,null,"challenge"]
[null,"5th fl",null,null,null,null,"winner"]
[null,"challenge",null,null,"RINK"]
[null,null,"RINK"]
[null,null,"502      loser out"]
[]
[]
[]
[null,"RINK",null,null,"6th Flight"]
[null,"loser out"]
[null,null,"RINK"]
[null,null,"loser out"]
[]
[null,"RINK"]
[null,"loser out",null,null,null,null,"6th fl 1st"]
[null,null,null,null,"RINK"]
[null,null,null,null,null,null,"6th fl 2nd"]
[]
[null,"RINK"]
[null,"loser out"]
[null,null,"RINK"]
[null,null,"loser out"]
[]
[null,"RINK"]
[null,"loser out"]
[]
[]
[]
[]
[]
[]
[]
[]
[null,"Challenge flights allow all teams(that come back on day 2) to play a minimum of 2 games the 2nd day. If you don't use challenge flights leave them blank."]
[]
[null,"With the 1 page printout, all the 1st games will line up vertically as well as the 2nd and 3rd game."]
[]
[null,"This makes it easy to check that no rink is used more than once a round."]
[]
[null,"It also allows checking each group of 8 to see that they don't play on the same rink twice and to minimize teams changing greens."]
[]
[null,"The tab with example 1 is a good place to start for 1st and 3rd flight using 2 greens but"]
[]
[null,"factors like unplayable end rinks and the number of teams make it impossible to have 1 method that work for all."]
[]
[null,"Good practices"]
[null,"don't use end rinks for top 2 flights"]
[]
[null,"Minimize changing greens"]
[]
[null,"Note how in champ flt, each 2nd game uses a rink used from the other half of the bracket"]
[null," the top 4 teams only used 4 rinks for the 1st 2 games, 10,11,14,15. it's easy to find a good rink for champ game and 3rd/4th"]
[]
[]
[null,"To delete lines, highlight a box which has all the lines you want to delete"]
[]
[null,"Put the cursor in a cell for 1 corner of the box"]
[]
[null,"while holding the cursor down slide slide your finger to create a box"]
[null,"right click format cells/border/none"]
[]
[null,"If green 1 is the better one, subtract 8 for rinks 9 to 16 and add 8 to rinks 1 to 8"]

{"sheet":"flt template ex 1","index":3,"n_rows":131,"n_cols":7,"rows_kept":131,"cut":false,"hidden":false,"merged":[]}
[null,null,null,null,"for 32 teams with challenge flights"]
[null,null,null,null,"Championship Flight"]
[null,"RINK 10"]
[null,"loser to201"]
[null,null,"RINK 14"]
[null,null,"loser to 204"]
[]
[null,"RINK 11"]
[null,"loser to 201",null,null,null,null,"Champion"]
[null,null,null,null,"RINK 13"]
[null,null,null,null,null,null,"2nd place"]
[]
[null,"RINK 14"]
[null,"loser to 202"]
[null,null,"RINK 10"]
[null,null,"loser to 204"]
[]
[null,"RINK 15"]
[null,"loser to 202",null,null,"RINK 12",null,"3rd place"]
[null,null,null,null,204,null,"4th place"]
[]
[null,null,"RINK 12"]
[null,null,"201            loser out"]
[null,null,null,null,null,null,"2nd flight 1st"]
[null,"2nd flight",null,null,"** RINK 10 or 11",null," 2nd flight 2nd"]
[null,null,"RINK 13"]
[null,null,"202          loser out"]
[]
[]
[null,null,null,null,"3rd Flight"]
[null,"RINK 2"]
[null,"loser to 301"]
[null,null,"RINK 6"]
[null,null,"loser out"]
[]
[null,"RINK 3"]
[null,"loser to 301",null,null,null,null,"3rd flight 1st"]
[null,null,null,null,"RINK 4"]
[null,null,null,null,null,null,"3rd flight 2nd"]
[]
[null,"RINK 6"]
[null,"loser to 302"]
[null,null,"RINK 2"]
[null,null,"loser out"]
[]
[null,"RINK 7"]
[null,"loser to 302"]
[]
[]
[null,null,"RINK 7"]
[null,null,"301      loser out",null,null,null,"challenge"]
[null,"3rd fl",null,null,null,null,"winner"]
[null,"challenge",null,null,"**RINK 10 or 11"]
[null,null,"RINK 3"]
[null,null,"302      loser out"]
[]
[]
[null,null,null,null,"4th Flight"]
[null,"RINK 9"]
[null,"loser to 401"]
[null,null,"RINK 15"]
[null,null,"loser out"]
[]
[null,"RINK 16",null,null,null,null,"4th fl 1st"]
[null,"loser to 401",null,null,"RINK 14"]
[]
[null,null,null,null,null,null,"4th fl 2nd"]
[]
[null,"RINK 12"]
[null,"loser to 402"]
[null,null,"RINK 9"]
[null,null,"loser out"]
[]
[null,"RINK 13"]
[null,"loser to 402"]
[]
[]
[null,null,"RINK 11"]
[null,null,"401       loser out",null,null,null,"challenge"]
[null,"4th fl",null,null,null,null,"winner"]
[null,"challenge",null,null,"RINK 15"]
[null,null,"RINK 16"]
[null,null,"402       loser out"]
[]
[]
[null,null,null,null,"5th Flight"]
[null,"RINK 1"]
[null,"loser to 501"]
[null,null,"RINK 4"]
[null,null,"loser out"]
[]
[null,"RINK 8"]
[null,"loser to 501",null,null,"RINK 6",null,"5th fl 1st"]
[]
[null,null,null,null,null,null,"5th fl 2nd"]
[]
[null,"RINK 4"]
[null,"loser to 502"]
[null,null,"RINK 1"]
[null,null,"loser out"]
[]
[null,"RINK 5"]
[null,"loser to 502"]
[]
[]
[null,null,"RINK 5"]
[null,null,"501         loser out",null,null,null,"challenge"]
[null,"5th fl",null,null,null,null,"winner"]
[null,"challenge",null,null,"RINK 7"]
[null,null,"RINK 8"]
[null,null,"502      loser out"]
[]
[]
[null,null,null,null,"6th Flight"]
[null,"RINK"]
[null,"loser out"]
[null,null,"RINK"]
[null,null,"loser out"]
[]
[null,"RINK"]
[null,"loser out",null,null,null,null,"6th fl 1st"]
[null,null,null,null,"RINK"]
[null,null,null,null,null,null,"6th fl 2nd"]
[]
[null,"RINK"]
[null,"loser out"]
[null,null,"RINK"]
[null,null,"loser out"]
[]
[null,"RINK"]
[null,"loser out"]

{"sheet":"flt template example 2","index":4,"n_rows":122,"n_cols":7,"rows_kept":122,"cut":false,"hidden":false,"merged":[]}
[null,null,null,null,null,"for 42 teams with challenge flights using 3 greens & no end rinks"]
[null,null,null,null,"Championship Flight","40 teams return for day 2"]
[null,"RINK 10"]
[null,"loser to201"]
[null,null,"RINK 14"]
[null,null,"loser to 204"]
[]
[null,"RINK 11"]
[null,"loser to 201",null,null,null,null,"Champion"]
[null,null,null,null,"RINK 13"]
[null,null,null,null,null,null,"2nd place"]
[]
[null,"RINK 14"]
[null,"loser to 202"]
[null,null,"RINK 11"]
[null,null,"loser to 204"]
[]
[null,"RINK 15"]
[null,"loser to 202",null,null,"RINK 12",null,"3rd place"]
[null,null,null,null,204,null,"4th place"]
[]
[null,null,"RINK 12"]
[null,null,"201            loser out"]
[null,null,null,null,null,null,"2nd flight 1st"]
[null,"2nd flight",null,null,"** RINK 10 or 11",null," 2nd flight 2nd"]
[null,null,"RINK 13"]
[null,null,"202          loser out"]
[null,null,null,null,null,"** whichever rink neither team has played on    "]
[]
[null,null,null,null,"3rd Flight"]
[null,"RINK 2"]
[null,"loser to 301"]
[null,null,"RINK 6"]
[null,null,"loser out"]
[]
[null,"RINK 3"]
[null,"loser to 301",null,null,null,null,"3rd flight 1st"]
[null,null,null,null,"RINK 4"]
[null,null,null,null,null,null,"3rd flight 2nd"]
[]
[null,"RINK 6"]
[null,"loser to 302"]
[null,null,"RINK 2"]
[null,null,"loser out"]
[]
[null,"RINK 7"]
[null,"loser to 302"]
[]
[]
[null,null,"RINK 7"]
[null,null,"301      loser out",null,null,null,"challenge"]
[null,"3rd fl",null,null,null,null,"winner"]
[null,"challenge",null,null,"**RINK 10 or 11"]
[null,null,"RINK 3"]
[null,null,"302      loser out"]
[null,null,null,null,null,"** wait until 2nd flight final has started"]
[]
[null,null,null,null,"4th Flight"]
[null,"RINK 19"]
[null,"loser to 401"]
[null,null,"RINK 21"]
[null,null,"loser out"]
[]
[null,"RINK 20",null,null,null,null,"4th fl 1st"]
[null,"loser to 401",null,null,"RINK 5"]
[]
[null,null,null,null,null,null,"4th fl 2nd"]
[]
[null,"RINK 21"]
[null,"loser to 402"]
[null,null,"RINK 19"]
[null,null,"loser out"]
[]
[null,"RINK 22"]
[null,"loser to 402"]
[]
[]
[null,null,"RINK 22"]
[null,null,"401       loser out",null,null,null,"challenge"]
[null,"4th fl",null,null,null,null,"winner"]
[null,"challenge",null,null,"RINK 6"]
[null,null,"RINK 20"]
[null,null,"402       loser out"]
[]
[]
[null,null,null,null,"5th Flight"]
[null,"RINK 4"]
[null,"loser out"]
[null,null,"RINK 15"]
[null,null,"loser out"]
[]
[null,"RINK 5"]
[null,"loser out",null,null,"RINK 14",null,"5th fl 1st"]
[]
[null,null,null,null,null,null,"5th fl 2nd"]
[]
[null,"RINK 12"]
[null,"loser out"]
[null,null,"RINK 10"]
[null,null,"loser out"]
[]
[null,"RINK 13"]
[null,"loser out"]
[]
[]
[]
[null,null,"RINK 4"]
[null,null,"501         loser out"]
[null,"6th fl",null,null,null,null,"winner"]
[null,null,null,null,"RINK 2"]
[null,null,"RINK 5"]
[null,null,"502      loser out"]
[]
[]
[]
[]
[null,null,"RINK 18"]
[null,null,"501         loser out"]
[null,null,null,null,null,null,"winner"]
[null,"7th flt",null,null,"RINK 3"]
[null,null,"RINK 23"]
[null,null,"502      loser out"]